bitfinex-derivatives/quotes_ETHF0:USTF0_20240829
["timestamp","ask_amount","ask_price","bid_price","bid_amount"]
[1724945996400,12.63020281,2594.5,2594.4,0.60210758]
[1724945996593,14.42953281,2594.5,2594.4,0.60210758]
[1724945997603,13.46630281,2594.5,2594.4,0.60210758]
[1724945997802,0.38537,2594.0,2593.8,0.38538]
[1724945998002,1.34879,2594.0,2593.9,0.59648744]
[1724945998308,5.67267154,2594.0,2593.9,2.57427358]
[1724945998601,5.67267154,2594.0,2593.9,1.97778614]
[1724945998602,6.51987154,2594.0,2593.9,1.97778614]
[1724945998801,6.51987154,2594.0,2593.7,6.33182054]
[1724945998802,2.31237,2593.8,2593.7,6.33182054]
[1724945999003,9.49757,2593.8,2593.7,5.06082054]
[1724945999196,19.58816348,2593.8,2593.7,3.77492813]
[1724945999401,2.31266,2593.5,2593.4,2.96667921]
[1724945999593,5.64266,2593.5,2593.4,2.96667921]
[1724945999795,2.31273,2593.4,2593.3,3.46112574]
[1724946000009,6.35883117,2593.4,2593.3,3.46112574]
[1724946000205,16.69094918,2593.4,2593.3,3.46112574]
[1724946000402,10.69094918,2593.4,2593.3,3.46112574]
[1724946000606,9.72730918,2593.4,2593.3,3.46112574]
[1724946001603,8.57356801,2593.4,2593.3,3.46112574]
[1724946001808,4.33211801,2593.4,2593.3,3.46112574]
[1724946002102,3.59323,2593.6,2593.3,3.84659574]
[1724946002306,4.67488576,2593.5,2593.3,3.84659574]
[1724946002508,0.38544,2593.5,2593.3,3.46112574]
[1724946002810,4.28944576,2593.4,2593.3,3.46112574]
[1724946003008,4.67489576,2593.4,2593.3,3.46112574]
[1724946003209,3.71545,2593.4,2593.3,3.46112574]
[1724946003406,8.00489576,2593.4,2593.3,3.46112574]
[1724946004001,8.00489576,2593.4,2593.2,0.8086]
[1724946004312,0.38548,2593.2,2593.1,0.99336826]
[1724946004510,7.61944576,2593.4,2593.1,0.99336826]
[1724946004708,4.28944576,2593.4,2593.3,0.38547]
[1724946004901,4.28944576,2593.4,2593.2,0.38548]
[1724946005205,0.38548,2593.2,2593.1,0.99336826]
[1724946005706,4.76197347,2593.2,2593.1,0.99336826]
[1724946005905,0.38546,2593.4,2593.2,0.38547]
[1724946006308,4.72370053,2593.3,2593.1,1.37885826]
[1724946006511,4.33823053,2593.3,2593.2,0.38548]
[1724946006823,0.38545,2593.4,2593.2,0.38548]
[1724946007105,3.33,2593.4,2593.1,0.99336826]
[1724946007313,1.3492,2593.2,2593.1,0.99336826]
[1724946007607,5.45500924,2593.2,2593.1,0.99336826]
[1724946007806,4.10580924,2593.2,2593.1,41.79336826]
[1724946008007,4.10580924,2593.2,2593.1,42.17886826]
[1724946008204,4.35036715,2593.3,2593.1,41.79336826]
[1724946008412,0.38548,2593.2,2593.1,41.79336826]
[1724946008803,4.73584715,2593.2,2593.1,41.79336826]
[1724946009001,4.15758635,2593.2,2593.1,40.80333952]
[1724946009309,5.50678635,2593.2,2593.1,40.80333952]
[1724946009709,4.15758635,2593.2,2593.1,44.65933952]
[1724946009916,0.38548,2593.2,2593.1,44.65933952]
[1724946010119,12.75538853,2593.2,2593.1,0.00333952]
[1724946010304,19.71910853,2593.2,2593.1,0.00333952]
[1724946010510,15.49892,2593.2,2593.1,0.00333952]
[1724946010709,12.75538853,2593.2,2593.1,0.00333952]
[1724946010903,11.79166853,2593.2,2593.1,0.00333952]
[1724946011109,4.60566853,2593.2,2593.1,0.00333952]
[1724946012007,5.56938853,2593.2,2593.1,0.00333952]
[1724946012320,19.71910853,2593.2,2593.1,0.00333952]
[1724946013710,12.75538853,2593.2,2593.1,0.00333952]
[1724946014012,7.93566853,2593.2,2593.1,0.00333952]
[1724946015522,4.22018853,2593.2,2593.1,3.59663952]
[1724946015811,3.33,2593.4,2593.1,7.45263952]
[1724946016017,6.5378,2593.6,2593.2,1.7873]
[1724946016218,6.5378,2593.6,2593.5,0.38544]
[1724946016518,7.68812508,2593.6,2593.4,0.38545]
[1724946016715,8.07356508,2593.6,2593.3,0.38545]
[1724946016919,7.68812508,2593.6,2593.5,0.38544]
[1724946017412,8.07354508,2593.6,2593.4,0.38544]
[1724946017620,8.07354508,2593.6,2593.3,0.38546]
[1724946017814,7.68812508,2593.6,2593.2,1.20908]
[1724946018128,10.89592508,2593.6,2593.2,1.20907]
[1724946018421,0.38545,2593.5,2593.3,0.38547]
[1724946018610,7.95135508,2593.6,2593.4,0.38545]
[1724946018810,4.03738705,2593.4,2593.3,0.38547]
[1724946019118,0.38546,2593.4,2593.2,1.20908]
[1724946019416,4.56865617,2593.3,2593.2,0.8236]
[1724946019610,4.56865617,2593.3,2593.1,3.21113952]
[1724946019611,0.38548,2593.2,2593.1,3.21113952]
[1724946020006,12.71838617,2593.2,2593.1,0.00333952]
[1724946020212,7.89866617,2593.2,2593.1,0.00333952]
[1724946020414,11.75466617,2593.2,2593.1,0.00333952]
[1724946020615,12.71838617,2593.2,2593.1,0.00333952]
[1724946021510,11.75466617,2593.2,2593.1,0.00333952]
[1724946021710,7.89866617,2593.2,2593.1,0.00333952]
[1724946022215,15.92618617,2593.2,2593.1,0.00333952]
[1724946022519,12.71838617,2593.2,2593.1,0.00333952]
[1724946022715,15.92618617,2593.2,2593.1,0.00333952]
[1724946022915,12.07018617,2593.2,2593.1,0.00333952]
[1724946023316,15.92618617,2593.2,2593.1,0.00333952]
[1724946023815,21.92618617,2593.2,2593.1,0.00333952]
[1724946026520,22.88990617,2593.2,2593.1,0.00333952]
[1724946027119,22.88990617,2593.2,2592.3,0.8019]
[1724946027120,0.3856,2592.4,2592.3,0.8019]
[1724946027328,3.33,2592.4,2592.3,0.8019]
[1724946027523,3.33,2592.4,2592.3,1.18752]
[1724946027524,4.03931543,2592.4,2592.3,1.18752]
[1724946027824,3.59335,2592.8,2592.5,0.38559]
[1724946027825,7.36931543,2592.7,2592.5,0.38559]
[1724946028021,7.75487543,2592.7,2592.4,0.38559]
[1724946028225,0.38557,2592.6,2592.3,1.18751]
[1724946028423,4.59894068,2592.6,2592.3,1.18751]
[1724946028623,3.71559,2592.5,2592.3,0.8019]
[1724946028826,6.5378,2592.5,2592.3,0.8019]
[1724946029027,4.21337068,2592.4,2592.3,0.8019]
[1724946029635,4.21337068,2592.4,2592.3,1.18752]
[1724946029837,4.21337068,2592.4,2592.3,0.8019]
[1724946030037,4.21337068,2592.4,2592.3,1.18752]
[1724946030341,4.21337068,2592.4,2592.3,0.8019]
[1724946030645,4.21337068,2592.4,2592.3,1.18752]
[1724946030839,4.21337068,2592.4,2592.3,0.8019]
[1724946031044,4.59897068,2592.4,2592.3,0.8019]
[1724946031337,4.21337068,2592.4,2592.3,1.18752]
[1724946031545,4.21337068,2592.4,2592.3,5.04512]
[1724946031734,0.00578592,2592.8,2592.3,13.8673]
[1724946031935,0.00578592,2592.8,2592.3,4.0097]
[1724946032246,0.00578592,2592.8,2592.6,0.38557]
[1724946032440,4.27448465,2592.7,2592.6,0.38557]
[1724946034435,0.00578592,2592.8,2592.6,8.41411]
[1724946034743,0.00578592,2592.8,2592.7,2.05626]
[1724946034940,0.00578592,2592.8,2592.7,5.91306]
[1724946037741,0.00578592,2592.8,2592.7,6.87696]
[1724946038446,3.2078,2593.4,2593.0,0.96378]
[1724946038746,3.2078,2593.4,2593.3,0.38547]
[1724946038944,0.38548,2593.2,2593.1,0.7835]
[1724946039250,4.43183444,2593.2,2593.1,0.7835]
[1724946039847,4.43183444,2593.2,2593.1,1.169]
[1724946040055,4.04635444,2593.2,2593.1,1.169]
[1724946040349,0.00578592,2593.4,2593.3,0.38547]
[1724946040746,0.00578592,2593.4,2593.3,4.24147]
[1724946041049,0.00578592,2593.4,2593.3,0.38547]
[1724946041442,0.00578592,2593.4,2593.2,0.7697]
[1724946041443,4.24830569,2593.4,2593.2,0.7697]
[1724946041638,4.24830569,2593.4,2593.3,0.38547]
[1724946042046,4.63375569,2593.4,2593.3,0.38547]
[1724946042243,4.24830569,2593.4,2593.2,1.15518]
[1724946042442,4.63376569,2593.4,2593.2,0.38547]
[1724946042649,4.24830569,2593.4,2593.3,0.38547]
[1724946044258,4.24830569,2593.4,2593.3,1.18787]
[1724946044446,4.24830569,2593.4,2593.3,0.38547]
[1724946045157,0.38548,2593.2,2593.1,0.7835]
[1724946045356,3.71548,2593.2,2593.1,0.7835]
[1724946045542,7.75661295,2593.2,2593.1,1.169]
[1724946045749,6.54358592,2593.4,2593.3,0.38547]
[1724946046250,3.21358592,2593.4,2593.3,4.24147]
[1724946046654,3.21358592,2593.4,2593.3,9.37663]
[1724946046655,0.00578592,2593.4,2593.3,9.37663]
[1724946046846,0.00578592,2593.4,2593.3,18.78373265]
[1724946047761,0.00578592,2593.4,2593.3,17.30392389]
[1724946047946,0.00578592,2593.4,2593.3,17.32803857]
[1724946048145,0.00578592,2593.4,2593.3,9.40088016]
[1724946048351,0.00578592,2593.4,2593.3,8.41295]
[1724946048655,0.00578592,2593.4,2593.3,9.40088016]
[1724946048851,0.00578592,2593.4,2593.3,8.41295]
[1724946049048,0.00578592,2593.4,2593.3,4.24147]
[1724946049446,0.38547,2593.3,2593.2,0.38548]
[1724946049849,3.33,2593.3,2593.0,4.19573016]
[1724946050056,0.38551,2593.0,2592.9,0.84078592]
[1724946050361,0.3855,2593.1,2593.0,0.38551]
[1724946050560,0.38549,2593.2,2593.1,0.3855]
[1724946050860,0.38549,2593.2,2592.9,0.39131592]
[1724946050861,0.38551,2593.0,2592.9,0.39131592]
[1724946051063,5.3092902,2593.2,2593.1,0.3855]
[1724946051064,4.7310602,2593.2,2593.1,0.3855]
[1724946051254,0.38549,2593.2,2593.1,0.3855]
[1724946051458,0.00578592,2593.4,2593.3,0.38547]
[1724946051657,0.38548,2593.3,2593.2,0.38548]
[1724946051853,0.38548,2593.3,2593.1,0.38549]
[1724946051854,7.73408603,2593.3,2593.1,0.38549]
[1724946052053,0.38551,2593.1,2592.9,0.39130592]
[1724946052355,0.38551,2593.1,2592.9,0.00578592]
[1724946052356,0.38551,2593.0,2592.9,0.00578592]
[1724946052661,5.65258149,2593.0,2592.9,0.00578592]
[1724946054459,4.68879149,2593.0,2592.9,0.00578592]
[1724946055760,5.65258149,2593.0,2592.9,0.00578592]
[1724946055960,9.64768149,2593.0,2592.9,0.00578592]
[1724946056555,13.50448149,2593.0,2592.9,0.00578592]
[1724946058156,20.46827149,2593.0,2592.9,0.00578592]
[1724946058553,0.96394,2592.6,2592.3,4.191]
[1724946058857,0.38562,2592.3,2592.1,4.58137016]
[1724946059050,0.38563,2592.2,2592.1,3.2078]
[1724946059257,4.47238292,2592.2,2592.1,3.59345]
[1724946059454,4.47238292,2592.2,2592.1,3.2078]
[1724946059967,4.08675292,2592.2,2592.1,3.59345]
[1724946060164,4.47238292,2592.2,2592.1,3.59345]
[1724946060359,4.08675292,2592.2,2592.1,3.59345]
[1724946060659,4.08675292,2592.2,2592.1,7.45105]
[1724946060861,1.19619,2592.5,2592.3,0.38561]
[1724946061170,6.5378,2592.6,2592.5,0.38559]
[1724946061358,6.92338,2592.6,2592.4,0.38559]
[1724946061553,4.02926816,2592.5,2592.4,0.38559]
[1724946061856,0.38559,2592.5,2592.1,4.19573016]
[1724946062169,0.38559,2592.5,2592.4,0.3856]
[1724946062367,0.38559,2592.5,2592.3,0.38561]
[1724946062662,6.92338,2592.6,2592.4,0.38559]
[1724946062970,3.2078,2592.6,2592.5,0.38559]
[1724946063465,7.24663424,2592.6,2592.5,0.38559]
[1724946063653,7.63220424,2592.6,2592.5,0.38559]
[1724946063858,7.63220424,2592.6,2592.1,4.19573016]
[1724946063859,0.38562,2592.3,2592.1,4.19573016]
[1724946064054,0.38562,2592.3,2592.1,3.2078]
[1724946064267,4.83125878,2592.2,2592.1,3.2078]
[1724946064965,4.83125878,2592.2,2592.1,3.59345]
[1724946065652,4.83125878,2592.2,2592.1,3.2078]
[1724946065856,0.38565,2592.1,2592.0,3.855]
[1724946066052,3.71565,2592.1,2592.0,3.855]
[1724946066251,8.17367471,2592.1,2592.0,3.855]
[1724946066558,9.13780471,2592.1,2592.0,3.855]
[1724946066867,12.60975471,2592.1,2591.7,0.3857]
[1724946067065,0.38568,2591.9,2591.7,0.3857]
[1724946067271,0.38571,2591.7,2591.6,0.38572]
[1724946067568,8.14181924,2591.8,2591.7,0.38571]
[1724946067777,3.7157,2591.8,2591.7,0.38571]
[1724946067961,12.00021924,2591.8,2591.7,0.38571]
[1724946068161,7.75611924,2591.8,2591.7,0.38571]
[1724946068963,7.56320333,2591.8,2591.7,0.38571]
[1724946069264,0.38571,2591.7,2591.6,0.38572]
[1724946069659,0.38572,2591.6,2591.5,1.20403]
[1724946069865,3.71572,2591.6,2591.5,1.20403]
[1724946070068,8.02889739,2591.6,2591.5,1.20403]
[1724946070374,8.02889739,2591.6,2591.3,11.6438]
[1724946070375,1.35014,2591.4,2591.3,11.6438]
[1724946070577,7.88794,2591.4,2591.3,4.245]
[1724946070762,12.18249284,2591.4,2591.3,4.245]
[1724946071067,8.97469284,2591.4,2591.3,4.245]
[1724946071264,12.18249284,2591.4,2591.3,3.845]
[1724946071568,0.38581,2591.0,2590.9,4.9908]
[1724946071868,4.73794679,2591.0,2590.9,4.191]
[1724946072071,4.73794679,2591.0,2590.9,4.57683]
[1724946072460,4.35213679,2591.0,2590.9,4.57683]
[1724946072664,3.71578,2591.3,2591.1,0.38579]
[1724946072972,4.40001261,2591.2,2591.1,0.38579]
[1724946073163,4.78579261,2591.2,2591.1,0.38579]
[1724946073364,0.3858,2591.1,2591.0,0.3858]
[1724946073573,4.40001261,2591.2,2591.1,0.3858]
[1724946073868,4.40001261,2591.2,2590.9,4.57682]
[1724946073869,0.38581,2591.1,2590.9,4.57682]
[1724946074271,4.69485755,2591.0,2590.9,4.57682]
[1724946074464,4.69485755,2591.0,2590.9,4.191]
[1724946074669,0.38581,2591.0,2590.9,4.191]
[1724946074970,5.65939755,2591.0,2590.9,4.191]
[1724946075171,4.69485755,2591.0,2590.9,4.191]
[1724946075471,4.30904755,2591.0,2590.9,4.191]
[1724946075869,4.69485755,2591.0,2590.9,4.191]
[1724946076168,8.55405755,2591.0,2590.9,4.191]
[1724946076369,5.27358755,2591.0,2590.6,0.8075]
[1724946076575,0.38586,2590.7,2590.6,0.8075]
[1724946077070,4.28175759,2590.7,2590.6,1.19337]
[1724946077371,4.66761759,2590.7,2590.6,0.8075]
[1724946082879,4.28175759,2590.7,2590.6,1.19337]
[1724946083380,4.66761759,2590.7,2590.6,0.8075]
[1724946084073,4.66761759,2590.7,2590.5,1.21948]
[1724946084074,0.38587,2590.6,2590.5,1.21948]
[1724946084273,3.71587,2590.6,2590.5,0.8336]
[1724946085474,3.33,2590.6,2590.5,1.21949]
[1724946085669,6.5378,2590.8,2590.6,0.38587]
[1724946085869,0.38586,2590.7,2590.6,0.38586]
[1724946086065,4.72483856,2590.7,2590.6,0.38586]
[1724946086269,4.72483856,2590.7,2590.5,0.8336]
[1724946086270,0.38587,2590.6,2590.5,1.21948]
[1724946086477,0.38587,2590.6,2590.5,0.8336]
[1724946086679,3.71587,2590.6,2590.5,0.8336]
[1724946087982,3.71587,2590.6,2590.5,0.38589]
[1724946088473,0.38589,2590.5,2590.4,0.38589]
[1724946088983,0.38589,2590.5,2590.4,4.24589]
[1724946089479,0.3859,2590.5,2590.4,0.3859]
[1724946089890,0.3859,2590.4,2590.3,1.9952]
[1724946090279,0.3859,2590.4,2590.3,5.856]
[1724946090483,4.29469,2590.6,2590.3,5.856]
[1724946090484,0.38589,2590.5,2590.4,0.38589]
[1724946090785,0.3859,2590.4,2590.3,1.99521]
[1724946091086,0.3859,2590.4,2590.3,1.99522]
[1724946091283,0.38592,2590.3,2590.2,3.2078]
[1724946091472,0.9648,2590.3,2589.9,7.3988]
[1724946091774,3.71597,2590.0,2589.8,1.5508]
[1724946091972,0.38598,2589.9,2589.8,1.5508]
[1724946092384,8.16147068,2589.9,2589.8,1.5508]
[1724946092985,8.16147068,2589.9,2589.8,1.93679]
[1724946093488,1.73433,2590.2,2589.8,1.93679]
[1724946093489,3.33,2590.3,2589.9,0.96494]
[1724946093785,0.38593,2590.2,2590.1,0.38593]
[1724946093987,0.38595,2590.1,2590.0,0.38595]
[1724946094193,0.38597,2590.0,2589.9,0.38597]
[1724946094485,0.38597,2590.0,2589.8,0.7675]
[1724946094486,0.38598,2589.9,2589.8,0.7675]
[1724946094688,0.38598,2589.9,2589.8,1.15349]
[1724946094885,7.99023626,2589.9,2589.6,45.044]
[1724946095078,0.386,2589.7,2589.6,44.658]
[1724946095389,0.386,2589.7,2589.6,4.24402]
[1724946095792,7.88882,2589.7,2589.6,3.858]
[1724946095996,1.35112,2589.5,2589.4,4.248]
[1724946096193,0.38609,2589.1,2589.0,3.9749]
[1724946096392,3.71609,2589.1,2589.0,3.9749]
[1724946096692,0.38613,2588.9,2588.8,0.38614]
[1724946096992,0.38614,2588.8,2588.7,4.57715]
[1724946097192,8.14446223,2588.9,2588.7,4.57715]
[1724946097489,8.14447223,2588.9,2588.7,4.57715]
[1724946097686,8.14447223,2588.9,2588.8,0.38614]
[1724946097988,8.14446223,2588.9,2588.7,4.57715]
[1724946098293,0.38614,2588.8,2588.7,4.191]
[1724946098601,4.78178982,2588.8,2588.7,4.191]
[1724946098784,4.39564982,2588.8,2588.7,4.191]
[1724946098984,4.39564982,2588.8,2588.7,4.57715]
[1724946099395,4.39564982,2588.8,2588.7,5.40615]
[1724946099986,4.78178982,2588.8,2588.7,4.191]
[1724946100188,4.78178982,2588.8,2588.6,0.38615]
[1724946100394,3.33,2588.7,2588.6,0.38615]
[1724946100803,3.33,2588.9,2588.4,0.96549]
[1724946101306,4.04497137,2588.8,2588.7,0.38615]
[1724946101999,4.04497137,2588.8,2588.6,0.38616]
[1724946102000,4.43112137,2588.8,2588.6,0.38616]
[1724946102301,3.71615,2588.7,2588.5,0.38617]
[1724946102490,3.71615,2588.7,2588.4,0.3862]
[1724946102491,3.71616,2588.7,2588.4,0.3862]
[1724946102695,4.12268746,2588.6,2588.4,0.3862]
[1724946103302,4.12268746,2588.6,2588.3,49.0278]
[1724946103600,4.12268746,2588.6,2588.2,0.8393]
[1724946103601,0.38621,2588.4,2588.2,0.8393]
[1724946103810,0.38621,2588.4,2588.0,5.04605]
[1724946103811,3.71623,2588.3,2588.0,4.24626]
[1724946104010,7.40362705,2588.3,2588.0,4.24626]
[1724946104205,7.40362705,2588.3,2588.1,0.38624]
[1724946104405,6.5378,2588.5,2588.2,0.38623]
[1724946104605,3.33,2588.5,2588.2,0.38623]
[1724946104806,3.33,2588.5,2588.2,0.38622]
[1724946105111,4.11266224,2588.3,2588.2,0.38622]
[1724946105311,3.33,2588.3,2588.0,4.24625]
[1724946105514,7.62661082,2588.3,2588.0,3.86]
[1724946105815,8.01283082,2588.3,2588.0,4.24625]
[1724946106109,3.71624,2588.1,2588.0,3.86]
[1724946106313,0.38626,2588.0,2587.6,45.22921]
[1724946106505,0.38626,2588.0,2587.9,0.38626]
[1724946106506,3.33,2588.0,2587.9,0.38626]
[1724946106708,3.33,2588.0,2587.8,0.38628]
[1724946106902,7.76956034,2588.0,2587.6,42.02141]
[1724946107103,0.8474,2587.9,2587.7,0.3863]
[1724946107406,4.11347029,2587.8,2587.7,3.2078]
[1724946107611,4.11347029,2587.8,2587.7,3.5941]
[1724946107812,3.33,2588.0,2587.9,0.38627]
[1724946108010,3.2078,2588.2,2587.7,7.0718]
[1724946108210,7.3776,2588.5,2588.3,0.38621]
[1724946108406,7.3776,2588.5,2588.0,3.2078]
[1724946108710,3.33,2588.1,2588.0,3.59406]
[1724946108909,3.33,2588.3,2588.1,0.38624]
[1724946109305,4.46699179,2588.2,2588.0,3.59405]
[1724946109508,0.38626,2588.0,2587.7,0.3863]
[1724946109713,3.71627,2587.9,2587.6,45.22921]
[1724946109908,7.45161386,2587.9,2587.7,0.3863]
[1724946110110,3.33,2587.9,2587.8,0.38629]
[1724946110311,3.33,2587.9,2587.6,45.22921]
[1724946110503,4.09544014,2587.8,2587.7,0.3863]
[1724946110704,3.33,2588.2,2587.6,48.7069]
[1724946111015,7.43122606,2588.2,2588.0,0.38625]
[1724946111216,0.38625,2588.1,2587.9,3.2078]
[1724946111415,0.38628,2587.9,2587.6,44.8429]
[1724946111613,3.33,2587.7,2587.6,0.8351]
[1724946111919,7.46754257,2587.7,2587.5,4.61633]
[1724946112117,7.46754257,2587.7,2587.2,5.0318]
[1724946112305,3.33,2587.4,2587.2,0.8408]
[1724946112619,3.33,2587.4,2586.9,11.2598]
[1724946112620,4.10262203,2587.3,2586.9,11.2598]
[1724946112820,4.10262203,2587.3,2587.2,0.38638]
[1724946113118,3.33,2587.6,2587.5,0.38633]
[1724946113324,3.33,2587.6,2587.4,0.38634]
[1724946113508,3.33,2587.6,2587.0,5.7802]
[1724946113509,4.20872444,2587.4,2587.0,5.7802]
[1724946113714,3.33,2587.3,2587.1,0.38639]
[1724946114023,7.92508444,2587.3,2587.0,1.1924]
[1724946114213,3.33,2587.1,2586.9,4.24742]
[1724946114714,3.33,2587.1,2587.0,0.38641]
[1724946115417,3.33,2587.1,2586.9,4.24742]
[1724946115919,4.02291327,2587.0,2586.9,3.861]
[1724946116117,4.02291327,2587.0,2586.6,54.019]
[1724946116118,4.40932327,2587.0,2586.6,52.4298]
[1724946116311,0.38644,2586.8,2586.6,7.78526]
[1724946116620,3.33,2586.7,2586.6,3.2078]
[1724946116917,7.54095591,2586.7,2586.6,3.2078]
[1724946117110,7.92740591,2586.7,2586.6,3.2078]
[1724946117313,0.38647,2586.6,2586.4,0.38649]
[1724946117521,7.92741591,2586.7,2586.4,0.38649]
[1724946118016,0.38647,2586.6,2586.4,0.38649]
[1724946118216,7.54095591,2586.7,2586.3,1.1645]
[1724946118417,3.33,2586.5,2586.4,0.3865]
[1724946119224,3.33,2586.5,2586.3,0.778]
[1724946119424,7.7595405,2586.5,2586.2,0.38651]
[1724946119722,0.38653,2586.2,2586.1,40.8]
[1724946119915,3.71652,2586.3,2586.1,0.38654]
[1724946120111,3.33,2586.3,2586.2,0.38653]
[1724946120315,0.38651,2586.4,2586.2,0.38653]
[1724946120525,7.92342342,2586.3,2586.1,0.38653]
[1724946120718,7.92342342,2586.3,2586.0,0.7651]
[1724946120719,7.53691342,2586.3,2586.2,0.38653]
[1724946120921,4.20691342,2586.4,2586.3,0.38651]
[1724946121128,3.33,2586.5,2586.4,0.3865]
[1724946121327,3.71649,2586.5,2586.3,0.3865]
[1724946121532,7.74727104,2586.5,2586.1,3.2078]
[1724946121726,3.33,2586.5,2586.4,0.3865]
[1724946121920,3.33,2586.5,2586.4,4.2529]
[1724946122122,3.33,2586.7,2586.6,0.38647]
[1724946122318,0.00579721,2586.8,2586.7,0.38645]
[1724946122528,0.00579721,2586.8,2586.7,4.56039]
[1724946122725,0.00579721,2586.8,2586.7,13.45985]
[1724946122925,0.00579721,2586.8,2586.7,3.8656]
[1724946123223,0.00579721,2586.8,2586.4,0.38649]
[1724946123224,0.38647,2586.6,2586.4,0.38649]
[1724946123426,3.71646,2586.7,2586.5,0.38648]
[1724946123829,1.21963721,2586.8,2586.4,0.7823]
[1724946124016,0.83319721,2586.8,2586.4,0.7823]
[1724946124226,0.00579721,2586.8,2586.7,0.38645]
[1724946124423,3.2078,2587.1,2587.0,0.38641]
[1724946125430,3.2078,2587.1,2587.0,4.25201]
[1724946125631,3.33579721,2587.3,2587.2,0.38638]
[1724946125926,3.33579721,2587.3,2586.9,1.6578]
[1724946126130,3.33579721,2587.3,2587.0,40.8]
[1724946126426,0.00579721,2587.3,2587.2,0.38638]
[1724946126626,0.00579721,2587.3,2587.0,44.0078]
[1724946126627,0.00579721,2587.3,2587.1,0.38638]
[1724946127035,0.00579721,2587.3,2587.2,0.38638]
[1724946127423,0.00579721,2587.3,2587.2,4.25118]
[1724946128325,0.7793,2588.0,2587.2,9.8648]
[1724946128326,4.1093,2588.0,2587.2,9.8648]
[1724946128631,4.2665934,2587.9,2587.7,3.59409]
[1724946128835,4.2665934,2587.9,2587.7,3.2078]
[1724946129130,0.7824,2588.1,2587.8,0.8474]
[1724946129131,4.2665934,2588.0,2587.8,0.8474]
[1724946129325,0.38627,2587.9,2587.8,0.8474]
[1724946129528,3.71627,2587.9,2587.4,3.59414]
[1724946129735,3.33,2587.9,2587.2,0.8474]
[1724946130135,3.33,2587.9,2587.4,3.2078]
[1724946130325,3.33,2587.9,2587.2,0.8474]
[1724946130525,0.38629,2587.8,2587.3,0.38635]
[1724946130729,4.14703576,2587.8,2587.4,0.38634]
[1724946131033,6.5378,2588.1,2587.7,0.3863]
[1724946131340,0.00579721,2588.2,2587.8,7.0718]
[1724946131637,0.00579721,2588.2,2587.5,4.045]
[1724946131638,7.71843758,2588.0,2587.5,4.045]
[1724946131825,7.71843758,2588.0,2587.8,0.38629]
[1724946132027,3.33579721,2588.2,2587.9,0.38627]
[1724946132335,3.33579721,2588.2,2588.1,0.38624]
[1724946132336,0.00579721,2588.2,2588.1,0.38624]
[1724946132724,0.00579721,2588.2,2588.1,4.25024]
[1724946133032,0.00579721,2588.2,2588.1,5.06644]
[1724946134036,0.00579721,2588.2,2588.1,5.84844]
[1724946134237,0.00579721,2588.2,2588.1,1.5982]
[1724946134431,0.00579721,2588.2,2588.1,5.4622]
[1724946135033,0.00579721,2588.2,2588.1,5.84844]
[1724946136336,0.00579721,2588.2,2588.1,5.4622]
[1724946136531,3.72202721,2588.2,2587.9,0.38627]
[1724946136937,0.38625,2588.1,2587.8,1.15809]
[1724946137339,4.20073431,2588.0,2587.8,0.38629]
[1724946137542,0.38629,2587.8,2587.7,3.2078]
[1724946137832,7.74782118,2587.8,2587.7,3.2078]
[1724946138032,21.39908118,2587.8,2586.8,0.00579721]
[1724946138233,3.33,2587.1,2587.0,0.3864]
[1724946138436,6.5378,2587.3,2586.8,0.00579721]
[1724946138640,3.2078,2587.7,2587.6,0.38632]
[1724946138839,3.71628,2587.9,2587.6,0.38632]
[1724946139134,4.44369902,2587.6,2587.5,0.38632]
[1724946139340,3.87825151,2587.8,2587.6,0.38632]
[1724946139539,3.71628,2587.9,2587.6,0.38632]
[1724946139739,0.38629,2587.8,2587.5,0.38633]
[1724946139931,3.33,2587.9,2587.5,0.38633]
[1724946140127,3.33,2587.9,2587.2,2.5788]
[1724946140128,3.33,2587.9,2587.6,0.38632]
[1724946140332,3.33,2587.9,2587.7,0.38629]
[1724946140537,3.71628,2587.9,2587.6,0.38631]
[1724946140740,3.33,2587.9,2587.6,0.38631]
[1724946140929,0.38631,2587.7,2587.2,2.5788]
[1724946141129,0.38631,2587.7,2587.4,0.38634]
[1724946141334,0.38634,2587.5,2587.2,2.96517]
[1724946141530,3.33,2587.4,2587.2,0.868]
[1724946141730,0.38638,2587.2,2586.8,0.84039721]
[1724946141934,3.33,2587.0,2586.8,0.00579721]
[1724946142140,3.2078,2586.9,2586.8,0.00579721]
[1724946142436,7.92328507,2586.9,2586.8,0.00579721]
[1724946142637,7.53686507,2586.9,2586.8,0.00579721]
[1724946143037,11.78888507,2586.9,2586.8,0.00579721]
[1724946143541,11.78888507,2586.9,2586.8,0.39223721]
[1724946143542,7.53686507,2586.9,2586.8,0.39223721]
[1724946143844,3.2078,2586.9,2586.8,0.39223721]
[1724946144937,3.2078,2586.9,2586.8,4.25783721]
[1724946145245,3.2078,2587.2,2587.1,0.38639]
[1724946145640,3.2078,2587.2,2587.1,4.25199]
[1724946146146,3.2078,2587.2,2587.1,0.38639]
[1724946146342,3.2078,2587.2,2586.9,2.6016]
[1724946146343,6.92418,2587.2,2587.0,0.3864]
[1724946146640,6.92418,2587.2,2586.9,1.26422]
[1724946146641,0.3864,2587.1,2586.9,1.26422]
[1724946147042,3.71641,2587.0,2586.9,0.8778]
[1724946147450,8.01324796,2587.0,2586.8,0.00579721]
[1724946147636,8.01325796,2587.0,2586.8,0.39223721]
[1724946148047,0.38642,2586.9,2586.8,0.00579721]
[1724946150249,0.38642,2586.9,2586.8,0.39223721]
[1724946150451,0.38642,2586.9,2586.8,0.00579721]
[1724946150746,7.62683796,2587.0,2586.9,0.38642]
[1724946151351,8.01324796,2587.0,2586.8,0.39222721]
[1724946151550,0.38642,2586.9,2586.8,0.00579721]
[1724946151856,7.62683796,2587.0,2586.9,0.38642]
[1724946152044,4.29683796,2587.0,2586.9,0.38642]
[1724946152361,0.8353,2587.1,2587.0,0.38641]